fUSD/lending_fUSD_20260519
["ID","MTS","AMOUNT","RATE_DAILY","PERIOD"]
[422620429,1779162644000,-513.0,0.00034167,30]
[422620420,1779162644000,-150.0,0.00034085,2]
[422620433,1779162644000,-156.0,0.00034167,30]
[422620439,1779162644000,-851.4,0.00034182,7]
[422620442,1779162644000,-150.0,0.00034206,7]
[422620438,1779162644000,-150.0,0.00034175,7]
[422620440,1779162644000,-1000.0,0.00034184,9]
[422620441,1779162644000,-150.0,0.0003419,2]
[422620443,1779162644000,-150.0,0.00034215,7]
[422620447,1779162644000,-163.0,0.0003425,11]
[422620448,1779162644000,-247.00395798,0.00034265,30]
[422620444,1779162644000,-163.0,0.00034234,11]
[422620445,1779162644000,-150.0,0.00034242,7]
[422620446,1779162644000,-1000.0,0.00034247,120]
[422620389,1779162644000,-2314.0,0.00033578,11]
[422620437,1779162644000,-157.0,0.00034167,30]
[422620414,1779162644000,-2314.0,0.00033995,11]
[422620434,1779162644000,-151.0,0.00034167,30]
[422620419,1779162644000,-150.0,0.00034085,2]
[422620392,1779162644000,-911.29233687,0.00033627,2]
[422620395,1779162644000,-298.36,0.00033631,2]
[422620393,1779162644000,-1628.95611607,0.00033627,7]
[422620387,1779162644000,-3633.0,0.00033479,2]
[422620397,1779162644000,-1587.0,0.0003368,11]
[422620396,1779162644000,-2314.0,0.0003368,11]
[422620398,1779162644000,-150.0,0.00033707,7]
[422620394,1779162644000,-2024.21,0.00033631,2]
[422620416,1779162644000,-750.0,0.00034,2]
[422620402,1779162644000,-150.0,0.00033707,7]
[422620399,1779162644000,-150.0,0.00033707,7]
[422620404,1779162644000,-150.0,0.00033707,7]
[422620401,1779162644000,-150.0,0.00033707,7]
[422620406,1779162644000,-150.0,0.00033707,7]
[422620400,1779162644000,-150.0,0.00033707,7]
[422620418,1779162644000,-150.0,0.00034024,7]
[422620407,1779162644000,-150.0,0.0003377,7]
[422620415,1779162644000,-57221.92,0.00034,2]
[422620413,1779162644000,-150.0,0.00033961,7]
[422620412,1779162644000,-150.0,0.00033957,7]
[422620410,1779162644000,-152.0,0.00033865,3]
[422620422,1779162644000,-276.0,0.00034085,2]
[422620411,1779162644000,-150.0,0.00033897,7]
[422620409,1779162644000,-150.0,0.00033863,7]
[422620405,1779162644000,-150.0,0.00033707,7]
[422620403,1779162644000,-150.0,0.00033707,7]
[422620408,1779162644000,-150.0,0.00033834,7]
[422620421,1779162644000,-150.0,0.00034085,2]
[422620492,1779162645000,-163.0,0.00034874,11]
[422620488,1779162645000,-220.85,0.000348,30]
[422620493,1779162645000,-1587.0,0.0003489,11]
[422620489,1779162645000,-250.0,0.00034825,30]
[422620490,1779162645000,-150.0,0.00034849,7]
[422620482,1779162645000,-150.0,0.00034722,7]
[422620484,1779162645000,-150.0,0.00034786,7]
[422620480,1779162645000,-1141.99,0.000347,7]
[422620481,1779162645000,-150.0,0.00034706,7]
[422620475,1779162645000,-150.0,0.00034596,7]
[422620477,1779162645000,-150.0,0.00034643,7]
[422620491,1779162645000,-163.0,0.00034874,11]
[422620485,1779162645000,-522.99,0.00034792,7]
[422620500,1779162645000,-150.0,0.00034967,2]
[422620504,1779162645000,-1900.44880208,0.00034989,7]
[422620494,1779162645000,-150.0,0.00034913,7]
[422620496,1779162645000,-150.0,0.00034955,7]
[422620497,1779162645000,-150.0,0.00034955,7]
[422620499,1779162645000,-5307.13,0.00034963,2]
[422620495,1779162645000,-150.0,0.00034955,7]
[422620498,1779162645000,-150.0,0.00034955,7]
[422620503,1779162645000,-1063.17439301,0.00034989,2]
[422620509,1779162645000,-2314.0,0.00035127,11]
[422620505,1779162645000,-1587.0,0.00035004,11]
[422620513,1779162645000,-158.0,0.00035167,30]
[422620508,1779162645000,-150.0,0.00035111,7]
[422620502,1779162645000,-150.0,0.00034976,7]
[422620479,1779162645000,-150.0,0.00034659,7]
[422620501,1779162645000,-400.0,0.0003497,2]
[422620483,1779162645000,-150.0,0.00034777,7]
[422620450,1779162645000,-439.11814752,0.00034265,30]
[422620487,1779162645000,-150.0,0.00034799,7]
[422620460,1779162645000,-16598.4947353,0.00034437,2]
[422620461,1779162645000,-163.0,0.00034441,11]
[422620449,1779162645000,-247.00395798,0.00034265,30]
[422620451,1779162645000,-439.11814752,0.00034265,30]
[422620452,1779162645000,-150.0,0.00034278,7]
[422620453,1779162645000,-2090.95102202,0.00034289,2]
[422620454,1779162645000,-5962.91,0.000343,14]
[422620457,1779162645000,-150.0,0.00034342,7]
[422620458,1779162645000,-2314.0,0.00034364,11]
[422620455,1779162645000,-152.0,0.000343,30]
[422620456,1779162645000,-150.0,0.00034331,7]
[422620459,1779162645000,-150.0,0.00034405,7]
[422620465,1779162645000,-150.0,0.00034456,7]
[422620464,1779162645000,-150.0,0.00034456,7]
[422620462,1779162645000,-2314.0,0.00034441,11]
[422620467,1779162645000,-5542.75267586,0.00034477,2]
[422620466,1779162645000,-150.0,0.00034469,7]
[422620470,1779162645000,-173.0,0.00034521,30]
[422620463,1779162645000,-2314.0,0.00034441,11]
[422620472,1779162645000,-2314.0,0.00034538,11]
[422620474,1779162645000,-382.00270389,0.00034583,2]
[422620473,1779162645000,-150.0,0.00034539,7]
[422620469,1779162645000,-361.13026635,0.00034493,2]
[422620468,1779162645000,-150.0,0.00034487,7]
[422620471,1779162645000,-150.0,0.00034532,7]
[422620476,1779162645000,-368.83069251,0.00034605,2]
[422620486,1779162645000,-1500.0,0.00034795,2]
[422620478,1779162645000,-10000.0,0.0003465,2]
[422620507,1779162645000,-150.0,0.00035103,7]
[422620571,1779162645000,-1069.84622707,0.00035616,7]
[422620511,1779162645000,-150.0,0.00035167,7]
[422620540,1779162645000,-150.0,0.00035484,7]
[422620544,1779162645000,-500.0,0.00035616,2]
[422620550,1779162645000,-1069.84622707,0.00035616,7]
[422620546,1779162645000,-1069.84622707,0.00035616,7]
[422620547,1779162645000,-1069.84622707,0.00035616,7]
[422620545,1779162645000,-1069.84622707,0.00035616,7]
[422620552,1779162645000,-1069.84622707,0.00035616,7]
[422620562,1779162645000,-1069.84622707,0.00035616,7]
[422620551,1779162645000,-1069.84622707,0.00035616,7]
[422620555,1779162645000,-1069.84622707,0.00035616,7]
[422620558,1779162645000,-1069.84622707,0.00035616,7]
[422620556,1779162645000,-1069.84622707,0.00035616,7]
[422620561,1779162645000,-1069.84622707,0.00035616,7]
[422620543,1779162645000,-150.0,0.00035611,7]
[422620557,1779162645000,-1069.84622707,0.00035616,7]
[422620553,1779162645000,-1069.84622707,0.00035616,7]
[422620559,1779162645000,-1069.84622707,0.00035616,7]
[422620560,1779162645000,-1069.84622707,0.00035616,7]
[422620563,1779162645000,-1069.84622707,0.00035616,7]
[422620567,1779162645000,-1069.84622707,0.00035616,7]
[422620568,1779162645000,-1069.84622707,0.00035616,7]
[422620565,1779162645000,-1069.84622707,0.00035616,7]
[422620566,1779162645000,-1069.84622707,0.00035616,7]
[422620574,1779162645000,-1069.84622707,0.00035616,7]
[422620564,1779162645000,-1069.84622707,0.00035616,7]
[422620569,1779162645000,-1069.84622707,0.00035616,7]
[422620572,1779162645000,-1069.84622707,0.00035616,7]
[422620506,1779162645000,-150.0,0.0003504,7]
[422620554,1779162645000,-1069.84622707,0.00035616,7]
[422620549,1779162645000,-1069.84622707,0.00035616,7]
[422620573,1779162645000,-1069.84622707,0.00035616,7]
[422620542,1779162645000,-150.0,0.00035579,7]
[422620548,1779162645000,-1069.84622707,0.00035616,7]
[422620512,1779162645000,-513.0,0.00035167,30]
[422620514,1779162645000,-160.0,0.00035167,30]
[422620516,1779162645000,-156.0,0.00035167,30]
[422620517,1779162645000,-151.0,0.00035167,30]
[422620518,1779162645000,-159.0,0.00035167,30]
[422620515,1779162645000,-412.0,0.00035167,30]
[422620521,1779162645000,-311.034375,0.000352,26]
[422620520,1779162645000,-157.0,0.00035167,30]
[422620524,1779162645000,-150.0,0.00035205,7]
[422620522,1779162645000,-314.308421,0.000352,26]
[422620519,1779162645000,-536.0,0.00035167,30]
[422620523,1779162645000,-1500.0,0.000352,7]
[422620526,1779162645000,-150.0,0.0003523,7]
[422620510,1779162645000,-346.0,0.00035165,30]
[422620537,1779162645000,-150.0,0.00035423,7]
[422620539,1779162645000,-150.0,0.00035455,7]
[422620538,1779162645000,-1587.0,0.00035447,11]
[422620541,1779162645000,-150.0,0.00035548,7]
[422620535,1779162645000,-150.0,0.00035421,7]
[422620525,1779162645000,-150.0,0.00035205,7]
[422620533,1779162645000,-150.0,0.00035357,7]
[422620530,1779162645000,-2000.0,0.000353,7]
[422620531,1779162645000,-150.0,0.00035312,7]
[422620529,1779162645000,-150.0,0.00035294,7]
[422620527,1779162645000,-150.0,0.00035267,7]
[422620532,1779162645000,-150.0,0.00035315,120]
[422620528,1779162645000,-400.0,0.0003527,2]
[422620534,1779162645000,-150.0,0.00035371,7]
[422620614,1779162646000,-1669.41931028,0.00035616,7]
[422620616,1779162646000,-1669.41931028,0.00035616,7]
[422620618,1779162646000,-1669.41931028,0.00035616,7]
[422620615,1779162646000,-1669.41931028,0.00035616,7]
[422620603,1779162646000,-1669.41931028,0.00035616,7]
[422620610,1779162646000,-1669.41931028,0.00035616,7]
[422620608,1779162646000,-1669.41931028,0.00035616,7]
[422620611,1779162646000,-1669.41931028,0.00035616,7]
[422620609,1779162646000,-1669.41931028,0.00035616,7]
[422620604,1779162646000,-1669.41931028,0.00035616,7]
[422620613,1779162646000,-1669.41931028,0.00035616,7]
[422620624,1779162646000,-1669.41931028,0.00035616,7]
[422620636,1779162646000,-1000.0,0.00035616,10]
[422620622,1779162646000,-1669.41931028,0.00035616,7]
[422620621,1779162646000,-1669.41931028,0.00035616,7]
[422620623,1779162646000,-1669.41931028,0.00035616,7]
[422620619,1779162646000,-1669.41931028,0.00035616,7]
[422620620,1779162646000,-1669.41931028,0.00035616,7]
[422620631,1779162646000,-1669.41931028,0.00035616,7]
[422620632,1779162646000,-1669.41931028,0.00035616,7]
[422620628,1779162646000,-1669.41931028,0.00035616,7]
[422620626,1779162646000,-1669.41931028,0.00035616,7]
[422620625,1779162646000,-1669.41931028,0.00035616,7]
[422620630,1779162646000,-1669.41931028,0.00035616,7]
[422620633,1779162646000,-1669.41931028,0.00035616,7]
[422620607,1779162646000,-1669.41931028,0.00035616,7]
[422620617,1779162646000,-1669.41931028,0.00035616,7]
[422620606,1779162646000,-1669.41931028,0.00035616,7]
[422620589,1779162646000,-1069.84622707,0.00035616,7]
[422620601,1779162646000,-1069.84622707,0.00035616,7]
[422620575,1779162646000,-1069.84622707,0.00035616,7]
[422620576,1779162646000,-1069.84622707,0.00035616,7]
[422620578,1779162646000,-1069.84622707,0.00035616,7]
[422620581,1779162646000,-1069.84622707,0.00035616,7]
[422620579,1779162646000,-1069.84622707,0.00035616,7]
[422620580,1779162646000,-1069.84622707,0.00035616,7]
[422620584,1779162646000,-1069.84622707,0.00035616,7]
[422620577,1779162646000,-1069.84622707,0.00035616,7]
[422620582,1779162646000,-1069.84622707,0.00035616,7]
[422620588,1779162646000,-1069.84622707,0.00035616,7]
[422620587,1779162646000,-1069.84622707,0.00035616,7]
[422620583,1779162646000,-1069.84622707,0.00035616,7]
[422620586,1779162646000,-1069.84622707,0.00035616,7]
[422620585,1779162646000,-1069.84622707,0.00035616,7]
[422620591,1779162646000,-1069.84622707,0.00035616,7]
[422620592,1779162646000,-1069.84622707,0.00035616,7]
[422620593,1779162646000,-1069.84622707,0.00035616,7]
[422620598,1779162646000,-1069.84622707,0.00035616,7]
[422620600,1779162646000,-1069.84622707,0.00035616,7]
[422620590,1779162646000,-1069.84622707,0.00035616,7]
[422620599,1779162646000,-1069.84622707,0.00035616,7]
[422620595,1779162646000,-1069.84622707,0.00035616,7]
[422620594,1779162646000,-1069.84622707,0.00035616,7]
[422620597,1779162646000,-1069.84622707,0.00035616,7]
[422620596,1779162646000,-1069.84622707,0.00035616,7]
[422620612,1779162646000,-1669.41931028,0.00035616,7]
[422620602,1779162646000,-1069.84622707,0.00035616,7]
[422620605,1779162646000,-1669.41931028,0.00035616,7]
[422620634,1779162646000,-1669.41931028,0.00035616,7]
[422620629,1779162646000,-1669.41931028,0.00035616,7]
[422620627,1779162646000,-1669.41931028,0.00035616,7]
[422620665,1779162646000,-150.0,0.00035954,7]
[422620670,1779162646000,-5000.0,0.00036023,2]
[422620669,1779162646000,-5059.79459802,0.00036023,2]
[422620667,1779162646000,-150.0,0.00035992,7]
[422620671,1779162646000,-5000.0,0.00036023,2]
[422620683,1779162646000,-346.0,0.00036165,30]
[422620675,1779162646000,-150.0,0.00036056,7]
[422620685,1779162646000,-158.0,0.00036167,30]
[422620679,1779162646000,-500.0,0.0003613,2]
[422620674,1779162646000,-150.0,0.00036048,7]
[422620676,1779162646000,-150.0,0.00036119,7]
[422620684,1779162646000,-513.0,0.00036167,30]
[422620677,1779162646000,-500.0,0.0003613,2]
[422620678,1779162646000,-500.0,0.0003613,2]
[422620682,1779162646000,-3792.0,0.00036164,2]
[422620681,1779162646000,-851.4,0.00036153,30]
[422620688,1779162646000,-156.0,0.00036167,30]
[422620690,1779162646000,-162.01024614,0.00036167,30]
[422620686,1779162646000,-160.0,0.00036167,30]
[422620687,1779162646000,-412.0,0.00036167,30]
[422620691,1779162646000,-536.0,0.00036167,30]
[422620692,1779162646000,-159.40676161,0.00036167,30]
[422620689,1779162646000,-151.0,0.00036167,30]
[422620693,1779162646000,-150.0,0.00036182,7]
[422620694,1779162646000,-150.0,0.00036204,7]
[422620695,1779162646000,-150.0,0.00036204,7]
[422620635,1779162646000,-1000.0,0.00035616,120]
[422620668,1779162646000,-800.0,0.00036,2]
[422620666,1779162646000,-150.0,0.00035954,7]
[422620680,1779162646000,-898.8,0.0003613,2]
[422620663,1779162646000,-1273.5,0.000359,120]
[422620637,1779162646000,-1000.0,0.00035616,10]
[422620664,1779162646000,-150.0,0.00035929,7]
[422620639,1779162646000,-153.08,0.00035616,120]
[422620648,1779162646000,-1587.0,0.00035767,11]
[422620645,1779162646000,-150.0,0.00035704,7]
[422620638,1779162646000,-962.0,0.00035616,10]
[422620641,1779162646000,-150.0,0.0003562,30]
[422620640,1779162646000,-498.22,0.00035616,2]
[422620644,1779162646000,-5962.91,0.000357,14]
[422620646,1779162646000,-150.0,0.00035736,7]
[422620642,1779162646000,-294.736412,0.00035624,30]
[422620643,1779162646000,-150.0,0.00035675,7]
[422620650,1779162646000,-500.0,0.00035787,2]
[422620660,1779162646000,-150.0,0.00035865,7]
[422620647,1779162646000,-150.0,0.00035738,7]
[422620658,1779162646000,-2571.78,0.00035865,2]
[422620672,1779162646000,-5000.0,0.00036023,2]
[422620649,1779162646000,-500.0,0.00035787,2]
[422620662,1779162646000,-150.0,0.00035899,2]
[422620661,1779162646000,-150.0,0.00035892,7]
[422620659,1779162646000,-3996.96,0.00035865,2]
[422620656,1779162646000,-1000.0,0.00035813,29]
[422620673,1779162646000,-5000.0,0.00036023,2]
[422620655,1779162646000,-150.0,0.00035802,7]
[422620654,1779162646000,-182.41,0.000358,120]
[422620653,1779162646000,-428.36,0.000358,120]
[422620652,1779162646000,-150.0,0.00035788,7]
[422620651,1779162646000,-599.19,0.00035787,2]
[422620657,1779162646000,-150.0,0.00035847,7]
[422620742,1779162647000,-300.0,0.00036313,2]
[422620749,1779162647000,-532.60806415,0.00036313,2]
[422620745,1779162647000,-493.11431358,0.00036313,2]
[422620746,1779162647000,-300.0,0.00036313,2]
[422620744,1779162647000,-300.0,0.00036313,2]
[422620736,1779162647000,-300.0,0.00036313,2]
[422620738,1779162647000,-301.56341978,0.00036313,2]
[422620732,1779162647000,-300.0,0.00036313,2]
[422620740,1779162647000,-300.0,0.00036313,2]
[422620739,1779162647000,-1128.57530382,0.00036313,2]
[422620741,1779162647000,-300.0,0.00036313,2]
[422620750,1779162647000,-1067.83107315,0.00036313,2]
[422620743,1779162647000,-300.0,0.00036313,2]
[422620747,1779162647000,-604.97934075,0.00036313,2]
[422620759,1779162647000,-344.26752972,0.00036313,2]
[422620756,1779162647000,-300.0,0.00036313,2]
[422620748,1779162647000,-300.0,0.00036313,2]
[422620754,1779162647000,-300.0,0.00036313,2]
[422620755,1779162647000,-300.83043347,0.00036313,2]
[422620751,1779162647000,-894.16698662,0.00036313,2]
[422620753,1779162647000,-304.53536779,0.00036313,2]
[422620758,1779162647000,-1914.02107409,0.00036313,2]
[422620768,1779162647000,-302.98053771,0.00036313,2]
[422620757,1779162647000,-301.97541223,0.00036313,2]
[422620761,1779162647000,-300.87999235,0.00036313,2]
[422620769,1779162647000,-464.23800129,0.00036313,2]
[422620762,1779162647000,-377.62387212,0.00036313,2]
[422620760,1779162647000,-527.33339049,0.00036313,2]
[422620731,1779162647000,-311.16533809,0.00036313,2]
[422620752,1779162647000,-726.67426302,0.00036313,2]
[422620735,1779162647000,-452.28042625,0.00036313,2]
[422620697,1779162647000,-150.0,0.00036204,7]
[422620734,1779162647000,-577.72111473,0.00036313,2]
[422620698,1779162647000,-150.0,0.00036246,7]
[422620696,1779162647000,-150.0,0.00036204,7]
[422620763,1779162647000,-1148.17982027,0.00036313,2]
[422620709,1779162647000,-300.0,0.00036313,2]
[422620699,1779162647000,-1000.0,0.00036255,8]
[422620708,1779162647000,-553.02079152,0.00036313,2]
[422620710,1779162647000,-493.11431358,0.00036313,2]
[422620702,1779162647000,-220.85,0.000363,30]
[422620701,1779162647000,-236.6197,0.00036272,2]
[422620700,1779162647000,-150.5,0.00036272,2]
[422620703,1779162647000,-379.58853386,0.00036301,2]
[422620707,1779162647000,-575.62001782,0.00036313,2]
[422620705,1779162647000,-250.0,0.00036301,7]
[422620704,1779162647000,-250.0,0.00036301,7]
[422620706,1779162647000,-150.0,0.00036309,7]
[422620712,1779162647000,-302.20383461,0.00036313,2]
[422620722,1779162647000,-302.54833179,0.00036313,2]
[422620726,1779162647000,-301.63310461,0.00036313,2]
[422620714,1779162647000,-604.97934075,0.00036313,2]
[422620723,1779162647000,-563.43087135,0.00036313,2]
[422620724,1779162647000,-302.21581847,0.00036313,2]
[422620728,1779162647000,-1148.17982027,0.00036313,2]
[422620716,1779162647000,-300.0,0.00036313,2]
[422620720,1779162647000,-302.05023432,0.00036313,2]
[422620729,1779162647000,-309.85234605,0.00036313,2]
[422620718,1779162647000,-1067.83107315,0.00036313,2]
[422620730,1779162647000,-1584.79309311,0.00036313,2]
[422620727,1779162647000,-300.0,0.00036313,2]
[422620733,1779162647000,-464.23800129,0.00036313,2]
[422620737,1779162647000,-300.99356046,0.00036313,2]
[422620767,1779162647000,-311.16533809,0.00036313,2]
[422620711,1779162647000,-300.0,0.00036313,2]
[422620765,1779162647000,-865.18841462,0.00036313,2]
[422620804,1779162647000,-599024.15499187,0.0003648,2]
[422620802,1779162647000,-3544.0,0.00036479,2]
[422620808,1779162647000,-163.86166734,0.00036548,30]
[422620801,1779162647000,-192.54772773,0.00036477,120]
[422620807,1779162647000,-150.0,0.00036516,7]
[422620805,1779162647000,-150.0,0.000365,7]
[422620806,1779162647000,-2000.0,0.000365,7]
[422620809,1779162647000,-150.0,0.00036563,7]
[422620812,1779162647000,-150.0,0.00036672,7]
[422620822,1779162647000,-150.0,0.00036754,7]
[422620823,1779162647000,-1000.0,0.00036754,102]
[422620811,1779162647000,-150.0,0.00036627,7]
[422620813,1779162647000,-2314.0,0.00036675,11]
[422620816,1779162647000,-150.0,0.0003669,7]
[422620803,1779162647000,-3633.0,0.00036479,2]
[422620817,1779162647000,-57221.92,0.000367,2]
[422620815,1779162647000,-150.92,0.0003669,30]
[422620818,1779162647000,-150.0,0.00036703,7]
[422620814,1779162647000,-320.0,0.00036675,11]
[422620820,1779162647000,-151.9716,0.00036715,2]
[422620821,1779162647000,-163.86166734,0.0003674,30]
[422620825,1779162647000,-500.0,0.00036799,2]
[422620826,1779162647000,-5962.91,0.000368,14]
[422620830,1779162647000,-458.3397135,0.00036834,2]
[422620824,1779162647000,-163.0,0.00036794,11]
[422620828,1779162647000,-150.0,0.00036817,7]
[422620764,1779162647000,-309.85234605,0.00036313,2]
[422620829,1779162647000,-150.0,0.00036828,7]
[422620831,1779162647000,-2314.0,0.0003685,11]
[422620832,1779162647000,-150.0,0.00036881,7]
[422620819,1779162647000,-150.0,0.00036703,7]
[422620810,1779162647000,-150.0,0.0003662,7]
[422620827,1779162647000,-2558.83951614,0.00036815,7]
[422620797,1779162647000,-20152.0,0.000364,30]
[422620798,1779162647000,-2314.0,0.00036407,11]
[422620766,1779162647000,-546.55378341,0.00036313,2]
[422620773,1779162647000,-1128.57530382,0.00036313,2]
[422620772,1779162647000,-300.0,0.00036313,2]
[422620774,1779162647000,-300.0,0.00036313,2]
[422620775,1779162647000,-1095.69229556,0.00036313,2]
[422620776,1779162647000,-300.0,0.00036313,2]
[422620777,1779162647000,-302.16308583,0.00036313,2]
[422620778,1779162647000,-300.0,0.00036313,2]
[422620781,1779162647000,-432.1324112,0.00036318,120]
[422620782,1779162647000,-500.0,0.00036318,120]
[422620771,1779162647000,-455.97730837,0.00036313,2]
[422620780,1779162647000,-302.16898591,0.00036313,2]
[422620779,1779162647000,-568.67893083,0.00036313,2]
[422620784,1779162647000,-787.1929315,0.00036318,120]
[422620770,1779162647000,-849.49152437,0.00036313,2]
[422620796,1779162647000,-150.0,0.00036382,7]
[422620794,1779162647000,-150.0,0.0003636,7]
[422620791,1779162647000,-163.0,0.00036355,11]
[422620790,1779162647000,-163.86166734,0.00036329,30]
[422620793,1779162647000,-720.0,0.00036355,11]
[422620792,1779162647000,-2314.0,0.00036355,11]
[422620789,1779162647000,-844.1215167,0.00036318,120]
[422620800,1779162647000,-150.0,0.00036453,7]
[422620786,1779162647000,-500.0,0.00036318,120]
[422620795,1779162647000,-150.0,0.00036373,7]
[422620788,1779162647000,-500.0,0.00036318,120]
[422620799,1779162647000,-150.0,0.00036436,7]
[422620785,1779162647000,-500.0,0.00036318,120]
[422620787,1779162647000,-500.0,0.00036318,120]
[422620783,1779162647000,-500.0,0.00036318,120]
[422620864,1779162648000,-500.0,0.00037,7]
[422620873,1779162648000,-500.0,0.00037,7]
[422620865,1779162648000,-500.0,0.00037,7]
[422620868,1779162648000,-500.0,0.00037,7]
[422620867,1779162648000,-500.0,0.00037,7]
[422620881,1779162648000,-150.0,0.00037071,7]
[422620880,1779162648000,-150.0,0.00037036,7]
[422620870,1779162648000,-500.0,0.00037,7]
[422620872,1779162648000,-500.0,0.00037,7]
[422620871,1779162648000,-500.0,0.00037,7]
[422620869,1779162648000,-500.0,0.00037,7]
[422620866,1779162648000,-500.0,0.00037,7]
[422620883,1779162648000,-163.0,0.00037114,11]
[422620874,1779162648000,-500.0,0.00037,7]
[422620877,1779162648000,-1000.0,0.00037004,12]
[422620875,1779162648000,-500.0,0.00037,7]
[422620878,1779162648000,-150.0,0.00037008,7]
[422620879,1779162648000,-2171.94148809,0.0003703,7]
[422620882,1779162648000,-2314.0,0.00037114,11]
[422620884,1779162648000,-150.0,0.00037135,7]
[422620893,1779162648000,-1000.0,0.00037199,36]
[422620885,1779162648000,-150.0,0.0003714,7]
[422620889,1779162648000,-218.552,0.00037179,2]
[422620888,1779162648000,-2314.0,0.0003717,11]
[422620859,1779162648000,-500.0,0.00037,7]
[422620876,1779162648000,-494.75,0.00037,7]
[422620861,1779162648000,-500.0,0.00037,7]
[422620847,1779162648000,-500.0,0.00037,7]
[422620863,1779162648000,-500.0,0.00037,7]
[422620836,1779162648000,-163.86166734,0.00036932,30]
[422620835,1779162648000,-150.0,0.00036917,7]
[422620837,1779162648000,-150.0,0.00036944,7]
[422620834,1779162648000,-1273.5,0.000369,120]
[422620833,1779162648000,-1199.363,0.00036896,46]
[422620838,1779162648000,-1000.0,0.00036949,34]
[422620840,1779162648000,-150.0,0.00036984,7]
[422620844,1779162648000,-500.0,0.00037,7]
[422620843,1779162648000,-500.0,0.00037,7]
[422620845,1779162648000,-619.59,0.00037,7]
[422620848,1779162648000,-500.0,0.00037,7]
[422620841,1779162648000,-1000.0,0.00036986,120]
[422620860,1779162648000,-500.0,0.00037,7]
[422620842,1779162648000,-500.0,0.00037,7]
[422620851,1779162648000,-500.0,0.00037,7]
[422620850,1779162648000,-500.0,0.00037,7]
[422620839,1779162648000,-150.0,0.00036953,7]
[422620849,1779162648000,-500.0,0.00037,7]
[422620852,1779162648000,-500.0,0.00037,7]
[422620854,1779162648000,-500.0,0.00037,7]
[422620856,1779162648000,-500.0,0.00037,7]
[422620855,1779162648000,-500.0,0.00037,7]
[422620857,1779162648000,-500.0,0.00037,7]
[422620858,1779162648000,-500.0,0.00037,7]
[422620862,1779162648000,-500.0,0.00037,7]
[422620853,1779162648000,-500.0,0.00037,7]
[422620846,1779162648000,-500.0,0.00037,7]
[422620891,1779162648000,-1000.0,0.00037195,47]
[422620890,1779162648000,-236.6197,0.00037179,2]
[422620886,1779162648000,-163.86166734,0.00037151,30]
[422620922,1779162648000,-163.0,0.00037434,11]
[422620929,1779162648000,-151.71029879,0.00037452,7]
[422620923,1779162648000,-2314.0,0.00037434,11]
[422620924,1779162648000,-150.92,0.0003745,60]
[422620927,1779162648000,-150.0,0.00037452,7]
[422620925,1779162648000,-284.58525916,0.00037452,30]
[422620921,1779162648000,-1587.0,0.0003739,11]
[422620928,1779162648000,-157.50595746,0.00037452,7]
[422620926,1779162648000,-254.67783396,0.00037452,7]
[422620932,1779162648000,-164.93102534,0.00037452,7]
[422620935,1779162648000,-1587.0,0.00037464,11]
[422620936,1779162648000,-331.77,0.00037473,37]
[422620931,1779162648000,-268.63189169,0.00037452,7]
[422620937,1779162648000,-1182071.6737,0.00037488,30]
[422620939,1779162648000,-1282.501218,0.00037488,7]
[422620940,1779162648000,-1282.501218,0.00037488,7]
[422620938,1779162648000,-1282.501218,0.00037488,7]
[422620942,1779162648000,-151.0,0.00037488,7]